fUSD/lending_fUSD_20240904
["ID","MTS","AMOUNT","RATE_DAILY","PERIOD"]
[337077970,1725412279671,-500.0,0.00014999,2]
[337077971,1725412279681,-651.39,0.00014999,2]
[337077972,1725412279690,-553.23,0.00014999,2]
[337077973,1725412279699,-401.91,0.00014999,2]
[337077974,1725412279708,-500.0,0.00014999,2]
[337077975,1725412279717,-500.0,0.00014999,2]
[337077976,1725412279727,-500.0,0.00014999,2]
[337077977,1725412279736,-500.0,0.00014999,2]
[337077978,1725412279746,-500.0,0.00014999,2]
[337077979,1725412279756,-500.0,0.00014999,2]
[337077980,1725412279767,-379.48979982,0.00014999,2]
[337077981,1725412279777,-500.0,0.00014999,2]
[337077982,1725412279786,-500.0,0.00014999,2]
[337077983,1725412279796,-500.0,0.00014999,2]
[337077984,1725412279805,-500.0,0.00014999,2]
[337077985,1725412279815,-500.0,0.00014999,2]
[337077986,1725412279824,-500.0,0.00014999,2]
[337077987,1725412279834,-500.0,0.00014999,2]
[337077988,1725412279844,-500.0,0.00014999,2]
[337077989,1725412279853,-500.0,0.00014999,2]
[337077990,1725412279862,-560.64,0.00014999,2]
[337077991,1725412279872,-500.0,0.00014999,2]
[337077992,1725412279881,-219.9,0.00014999,2]
[337077993,1725412279890,-500.0,0.00014999,2]
[337077994,1725412279900,-500.0,0.00014999,2]
[337077995,1725412279910,-500.0,0.00014999,2]
[337077996,1725412279920,-500.0,0.00014999,2]
[337077997,1725412279929,-500.0,0.00014999,2]
[337077998,1725412279939,-500.0,0.00014999,2]
[337077999,1725412279948,-500.0,0.00014999,2]
[337078000,1725412279957,-500.0,0.00014999,2]
[337078001,1725412279967,-500.0,0.00014999,2]
[337078002,1725412279976,-500.0,0.00014999,2]
[337078003,1725412279986,-500.0,0.00014999,2]
[337078004,1725412279995,-500.0,0.00014999,2]
[337078005,1725412280005,-500.0,0.00014999,2]
[337078006,1725412280014,-500.0,0.00014999,2]
[337078007,1725412280023,-500.0,0.00014999,2]
[337078008,1725412280032,-500.0,0.00014999,2]
[337078009,1725412280041,-500.0,0.00014999,2]
[337078010,1725412280051,-500.0,0.00014999,2]
[337078011,1725412280060,-438.94,0.00014999,2]
[337078012,1725412280069,-500.0,0.00014999,2]
[337078013,1725412280079,-500.0,0.00014999,2]
[337078014,1725412280088,-500.0,0.00014999,2]
[337078015,1725412280098,-412.72,0.00014999,2]
[337078016,1725412280107,-500.0,0.00014999,2]
[337078017,1725412280117,-500.0,0.00014999,2]
[337078018,1725412280126,-500.0,0.00014999,2]
[337078019,1725412280136,-500.0,0.00014999,2]
[337078020,1725412280145,-500.0,0.00014999,2]
[337078021,1725412280157,-500.0,0.00014999,2]
[337078022,1725412280167,-500.0,0.00014999,2]
[337078023,1725412280176,-500.0,0.00014999,2]
[337078024,1725412280186,-500.0,0.00014999,2]
[337078025,1725412280195,-500.0,0.00014999,2]
[337078026,1725412280204,-500.0,0.00014999,2]
[337078027,1725412280213,-500.0,0.00014999,2]
[337078028,1725412280223,-500.0,0.00014999,2]
[337078029,1725412280232,-481.94,0.00014999,2]
[337078030,1725412280241,-500.0,0.00014999,2]
[337078031,1725412280250,-500.0,0.00014999,2]
[337078032,1725412280259,-500.0,0.00014999,2]
[337078033,1725412280268,-500.0,0.00014999,2]
[337078034,1725412280278,-500.0,0.00014999,2]
[337078035,1725412280287,-500.0,0.00014999,2]
[337078036,1725412280295,-500.0,0.00014999,2]
[337078037,1725412280305,-598.79215068,0.00014999,2]
[337078038,1725412280314,-500.0,0.00014999,2]
[337078039,1725412280323,-500.0,0.00014999,2]
[337078040,1725412280331,-324.622806,0.00014999,2]
[337078041,1725412280341,-500.0,0.00014999,2]
[337078042,1725412280349,-316.84,0.00014999,2]
[337078043,1725412280359,-500.0,0.00014999,2]
[337078044,1725412280367,-500.0,0.00014999,2]
[337078045,1725412280376,-500.0,0.00014999,2]
[337078046,1725412280385,-500.0,0.00014999,2]
[337078047,1725412280394,-500.0,0.00014999,2]
[337078048,1725412280404,-500.0,0.00014999,2]
[337078049,1725412280413,-556.98164158,0.00014999,2]
[337078050,1725412280423,-500.0,0.00014999,2]
[337078051,1725412280432,-500.0,0.00014999,2]
[337078052,1725412280441,-500.0,0.00014999,2]
[337078053,1725412280451,-500.0,0.00014999,2]
[337078054,1725412280460,-500.0,0.00014999,2]
[337078055,1725412280469,-648.02,0.00014999,2]
[337078056,1725412280478,-500.0,0.00014999,2]
[337078057,1725412280487,-500.0,0.00014999,2]
[337078058,1725412280497,-500.0,0.00014999,2]
[337078059,1725412280506,-500.0,0.00014999,2]
[337078060,1725412280516,-500.0,0.00014999,2]
[337078061,1725412280526,-500.0,0.00014999,2]
[337078062,1725412280535,-500.0,0.00014999,2]
[337078063,1725412280545,-500.0,0.00014999,2]
[337078064,1725412280554,-345.20440055,0.00014999,2]
[337078065,1725412280563,-500.0,0.00014999,2]
[337078066,1725412280572,-500.0,0.00014999,2]
[337078067,1725412280581,-500.0,0.00014999,2]
[337078068,1725412280591,-500.0,0.00014999,2]
[337078069,1725412280601,-500.0,0.00014999,2]
[337078070,1725412280610,-500.0,0.00014999,2]
[337078071,1725412280620,-308.89230595,0.00014999,2]
[337078072,1725412280897,-215.35769405,0.00014999,2]
[337078073,1725412280909,-500.0,0.00014999,2]
[337078074,1725412280919,-500.0,0.00014999,2]
[337078075,1725412280928,-500.0,0.00014999,2]
[337078076,1725412280937,-500.0,0.00014999,2]
[337078077,1725412280947,-500.0,0.00014999,2]
[337078078,1725412280956,-500.0,0.00014999,2]
[337078079,1725412280965,-500.0,0.00014999,2]
[337078080,1725412280974,-500.0,0.00014999,2]
[337078081,1725412280984,-500.0,0.00014999,2]
[337078082,1725412280994,-617.96,0.00014999,2]
[337078083,1725412281003,-500.0,0.00014999,2]
[337078084,1725412281013,-500.0,0.00014999,2]
[337078085,1725412281023,-500.0,0.00014999,2]
[337078086,1725412281033,-500.0,0.00014999,2]
[337078087,1725412281042,-500.0,0.00014999,2]
[337078088,1725412281051,-500.0,0.00014999,2]
[337078089,1725412281061,-500.0,0.00014999,2]
[337078090,1725412281071,-500.0,0.00014999,2]
[337078091,1725412281080,-500.0,0.00014999,2]
[337078092,1725412281090,-500.0,0.00014999,2]
[337078093,1725412281099,-500.0,0.00014999,2]
[337078094,1725412281108,-500.0,0.00014999,2]
[337078095,1725412281118,-513.46,0.00014999,2]
[337078096,1725412281127,-500.0,0.00014999,2]
[337078097,1725412281137,-500.0,0.00014999,2]
[337078098,1725412281147,-500.0,0.00014999,2]
[337078099,1725412281159,-311.88,0.00014999,2]
[337078100,1725412281169,-500.0,0.00014999,2]
[337078101,1725412281178,-500.0,0.00014999,2]
[337078102,1725412281187,-394.72325197,0.00014999,2]
[337078103,1725412281197,-500.0,0.00014999,2]
[337078104,1725412281207,-500.0,0.00014999,2]
[337078105,1725412281216,-591.59,0.00014999,2]
[337078106,1725412281225,-500.0,0.00014999,2]
[337078107,1725412281234,-500.0,0.00014999,2]
[337078108,1725412281244,-500.0,0.00014999,2]
[337078109,1725412281254,-500.0,0.00014999,2]
[337078110,1725412281263,-500.0,0.00014999,2]
[337078111,1725412281272,-337.72,0.00014999,2]
[337078112,1725412281281,-242.63621512,0.00014999,2]
[337078113,1725412281291,-500.0,0.00014999,2]
[337078114,1725412281301,-500.0,0.00014999,2]
[337078115,1725412281310,-475.04,0.00014999,2]
[337078116,1725412281319,-500.0,0.00014999,2]
[337078117,1725412281328,-500.0,0.00014999,2]
[337078118,1725412281338,-500.0,0.00014999,2]
[337078119,1725412281347,-500.0,0.00014999,2]
[337078120,1725412281357,-500.0,0.00014999,2]
[337078121,1725412281366,-500.0,0.00014999,2]
[337078122,1725412281376,-500.0,0.00014999,2]
[337078123,1725412281385,-500.0,0.00014999,2]
[337078124,1725412281395,-500.0,0.00014999,2]
[337078125,1725412281405,-500.0,0.00014999,2]
[337078126,1725412281415,-500.0,0.00014999,2]
[337078127,1725412281424,-500.0,0.00014999,2]
[337078128,1725412281433,-380.45,0.00014999,2]
[337078129,1725412281442,-500.0,0.00014999,2]
[337078130,1725412281451,-500.0,0.00014999,2]
[337078131,1725412281460,-500.0,0.00014999,2]
[337078132,1725412281469,-500.0,0.00014999,2]
[337078133,1725412281478,-500.0,0.00014999,2]
[337078134,1725412281486,-500.0,0.00014999,2]
[337078135,1725412281495,-500.0,0.00014999,2]
[337078136,1725412281504,-500.0,0.00014999,2]
[337078137,1725412281513,-374.52,0.00014999,2]
[337078138,1725412281522,-155.45,0.00014999,2]
[337078139,1725412281531,-500.0,0.00014999,2]
[337078140,1725412281540,-500.0,0.00014999,2]
[337078141,1725412281549,-641.76,0.00014999,2]
[337078142,1725412281558,-500.0,0.00014999,2]
[337078143,1725412281567,-500.0,0.00014999,2]
[337078144,1725412281576,-648.1,0.00014999,2]
[337078145,1725412281585,-500.0,0.00014999,2]
[337078146,1725412281595,-500.0,0.00014999,2]
[337078147,1725412281604,-500.0,0.00014999,2]
[337078148,1725412281613,-151.0,0.00014999,2]
[337078149,1725412281623,-500.0,0.00014999,2]
[337078150,1725412281632,-500.0,0.00014999,2]
[337078151,1725412281642,-500.0,0.00014999,2]
[337078152,1725412281652,-500.0,0.00014999,2]
[337078153,1725412281661,-500.0,0.00014999,2]
[337078154,1725412281671,-500.0,0.00014999,2]
[337078155,1725412281680,-500.0,0.00014999,2]
[337078156,1725412281689,-500.0,0.00014999,2]
[337078157,1725412281698,-500.0,0.00014999,2]
[337078158,1725412281708,-500.0,0.00014999,2]
[337078159,1725412281717,-500.0,0.00014999,2]
[337078160,1725412281727,-500.0,0.00014999,2]
[337078161,1725412281735,-500.0,0.00014999,2]
[337078162,1725412281745,-500.0,0.00014999,2]
[337078163,1725412281755,-510.3,0.00014999,2]
[337078164,1725412281766,-500.0,0.00014999,2]
[337078165,1725412281776,-500.0,0.00014999,2]
[337078166,1725412281785,-500.0,0.00014999,2]
[337078167,1725412281795,-500.0,0.00014999,2]
[337078168,1725412281804,-500.0,0.00014999,2]
[337078169,1725412281813,-500.0,0.00014999,2]
[337078170,1725412281823,-500.0,0.00014999,2]
[337078171,1725412281832,-500.0,0.00014999,2]
[337078172,1725412281843,-500.0,0.00014999,2]
[337078173,1725412281852,-500.0,0.00014999,2]
[337078174,1725412281862,-151.0,0.00014999,2]
[337078175,1725412281872,-500.0,0.00014999,2]
[337078176,1725412281881,-500.0,0.00014999,2]
[337078177,1725412281891,-466.68,0.00014999,2]
[337078178,1725412281902,-500.0,0.00014999,2]
[337078179,1725412281911,-500.0,0.00014999,2]
[337078180,1725412281921,-500.0,0.00014999,2]
[337078181,1725412281931,-400.08381952,0.00014999,2]
[337078182,1725412281941,-500.0,0.00014999,2]
[337078183,1725412281951,-500.0,0.00014999,2]
[337078184,1725412281961,-500.0,0.00014999,2]
[337078185,1725412281972,-500.0,0.00014999,2]
[337078186,1725412281982,-500.0,0.00014999,2]
[337078187,1725412281991,-500.0,0.00014999,2]
[337078188,1725412282001,-362.9,0.00014999,2]
[337078189,1725412282011,-500.0,0.00014999,2]
[337078190,1725412282020,-500.0,0.00014999,2]
[337078191,1725412282030,-500.0,0.00014999,2]
[337078192,1725412282040,-433.12,0.00014999,2]
[337078193,1725412282050,-500.0,0.00014999,2]
[337078194,1725412282060,-534.45,0.00014999,2]
[337078195,1725412282070,-500.0,0.00014999,2]
[337078196,1725412282080,-500.0,0.00014999,2]
[337078197,1725412282089,-500.0,0.00014999,2]
[337078198,1725412282099,-500.0,0.00014999,2]
[337078199,1725412282108,-500.0,0.00014999,2]
[337078200,1725412282118,-500.0,0.00014999,2]
[337078201,1725412282128,-500.0,0.00014999,2]
[337078202,1725412282138,-500.0,0.00014999,2]
[337078203,1725412282153,-500.0,0.00014999,2]
[337078204,1725412282163,-500.0,0.00014999,2]
[337078205,1725412282173,-312.61,0.00014999,2]
[337078206,1725412282185,-500.0,0.00014999,2]
[337078207,1725412282195,-490.7,0.00014999,2]
[337078208,1725412282206,-500.0,0.00014999,2]
[337078209,1725412282216,-500.0,0.00014999,2]
[337078210,1725412282226,-500.0,0.00014999,2]
[337078211,1725412282237,-500.0,0.00014999,2]
[337078212,1725412282246,-500.0,0.00014999,2]
[337078213,1725412282256,-500.0,0.00014999,2]
[337078214,1725412282266,-500.0,0.00014999,2]
[337078215,1725412282276,-525.75765286,0.00014999,2]
[337078216,1725412282286,-500.0,0.00014999,2]
[337078217,1725412282296,-500.0,0.00014999,2]
[337078218,1725412282306,-500.0,0.00014999,2]
[337078219,1725412282315,-500.0,0.00014999,2]
[337078220,1725412282326,-500.0,0.00014999,2]
[337078221,1725412282336,-500.0,0.00014999,2]
[337078222,1725412282345,-227138.99225258,0.00015,2]
[337078223,1725412282355,-687623.61210891,0.00015,2]
[337078224,1725412282369,-264.37412651,0.00015,2]
[337078225,1725412282388,-380.72200111,0.00014998,2]
[337078226,1725412282405,-119.27799889,0.00014998,2]
[337078227,1725412282416,-500.0,0.00014999,2]
[337078228,1725412282425,-500.0,0.00014999,2]
[337078229,1725412282435,-882.75662933,0.00015,2]
[337078230,1725412282446,-1486.76048595,0.00015,2]
[337078231,1725412282457,-1137.67423019,0.00015,2]
[337078232,1725412282468,-3807.68471651,0.00015,2]
[337078233,1725412282642,-888.822194,0.00013787,2]
[337078234,1725412282652,-573.14,0.00014999,2]
[337078235,1725412282661,-1402.537806,0.00015,2]
[337078236,1725412282672,-566.32138771,0.00015,2]
[337078237,1725412282683,-314.377,0.00015,2]
[337078238,1725412282694,-5672.45,0.00015,2]
[337078239,1725412282705,-6308.80249949,0.00015,2]
[337078240,1725412282784,-151.66,0.00013413,2]
[337078241,1725412282795,-599.8222,0.00014778,2]
[337078242,1725412282804,-500.0,0.00014877,2]
[337078243,1725412282813,-500.0,0.00014877,2]
[337078244,1725412282822,-500.0,0.00014972,2]
[337078245,1725412282832,-229.43,0.00014972,2]
[337078246,1725412282842,-500.0,0.00014972,2]
[337078247,1725412282851,-500.0,0.00014997,2]
[337078248,1725412282860,-528.9,0.00014998,2]
[337078249,1725412282869,-500.0,0.00014999,2]
[337078250,1725412282878,-17174.49193436,0.00015,2]
[337078251,1725412282891,-464.2,0.00015,2]
[337078252,1725412282904,-24043.16630571,0.00015,2]
[337078253,1725412282915,-398.75676085,0.00015,2]
[337078254,1725412282926,-369.63403253,0.00015,2]
[337078255,1725412282938,-2827.825,0.00015,2]
[337078256,1725412282949,-10623.6004875,0.00015,2]
[337078257,1725412282960,-266.362806,0.00015,2]
[337078258,1725412283043,-28300.0,0.00015,2]
[337078259,1725412283066,-16683.26190784,0.00015,2]
[337078260,1725412283078,-364074.47929182,0.00015,2]
[337078261,1725412283089,-5754350.88107223,0.00015,2]
[337078262,1725412283101,-1651749.07444762,0.00015,2]
[337078263,1725412283917,-6148.2104835,0.00015,2]
[337078264,1725412283938,-6896.67992919,0.00015,2]
[337078265,1725412283952,-3008.528245,0.00015,2]
[337078266,1725412283967,-17813.34340703,0.00015,2]
[337078267,1725412283981,-735.72136006,0.00015,2]
[337078268,1725412283995,-12449.7071994,0.00015,2]
[337078269,1725412284006,-2739.38017703,0.00015,2]
[337078270,1725412284017,-754.8836,0.00015,2]
[337078271,1725412284158,-500.0,0.00014877,2]
[337078272,1725412284168,-500.0,0.00014877,2]
[337078273,1725412284179,-500.0,0.00014972,2]
[337078274,1725412284190,-500.0,0.00014972,2]
[337078275,1725412284200,-500.0,0.00014972,2]
[337078276,1725412284210,-500.0,0.00014972,2]
[337078277,1725412284219,-500.0,0.00014972,2]
[337078278,1725412284229,-500.0,0.00014972,2]
[337078279,1725412284238,-467.85,0.00014987,2]
[337078280,1725412284247,-266.11,0.00014996,2]
[337078281,1725412284257,-500.0,0.00014997,2]
[337078282,1725412284266,-500.0,0.00014997,2]
[337078283,1725412284276,-500.0,0.00014997,2]
[337078284,1725412284286,-500.0,0.00014997,2]
[337078285,1725412284296,-500.0,0.00014998,2]
[337078286,1725412284306,-500.0,0.00014998,2]
[337078287,1725412284315,-216.64,0.00014999,2]
[337078288,1725412284325,-500.0,0.00014999,2]
[337078289,1725412284336,-177.19901105,0.00014999,2]
[337078290,1725412284346,-7472.20098895,0.00015,2]
[337078291,1725412284359,-792.414,0.00015,2]
[337078292,1725412284371,-425.205,0.00015,2]
[337078293,1725412284382,-446.5425,0.00015,2]
[337078294,1725412284397,-500.0,0.00014972,2]
[337078295,1725412284418,-1792.0,0.00015,2]
[337078296,1725412284430,-28467.07000001,0.00015,2]
[337078297,1725412284442,-3427.09858684,0.00015,2]
[337078298,1725412284453,-325.00885724,0.00015,2]
[337078299,1725412284510,-315.78,0.00014987,2]
[337078300,1725412284519,-449.83,0.00014997,2]
[337078301,1725412284529,-500.0,0.00014998,2]
[337078302,1725412284538,-173.36216372,0.00014999,2]
[337078303,1725412284548,-28044.55725043,0.00015,2]
[337078304,1725412284584,-537.21593007,0.00015,2]
[337078305,1725412284646,-382.5679835,0.00015,2]
[337078306,1725412284664,-5697.10712135,0.00015,2]
[337078307,1725412284675,-2848.3455,0.00015,2]
[337078308,1725412284686,-15317.9889668,0.00015,2]
[337078309,1725412284698,-1029.50424742,0.00015,2]
[337078310,1725412285046,500.0,0.00011164,2]
[337078311,1725412286302,303.15170144,0.00011164,2]
[337078312,1725412286330,500.0,0.00011164,2]
[337078313,1725412286822,440.01681639,0.00011781,7]
[337078314,1725412360471,500.0,0.00011164,2]
[337078315,1725412366042,299.07,0.00012046,2]
[337078316,1725412385837,162.06,0.00010959,2]
[337078317,1725412892880,284.11,0.00011991,2]
[337078318,1725413137479,186.19157988,9.5e-05,2]
[337078326,1725413216625,894.0,0.00012,2]
[337078335,1725413382492,293.7,0.00011733,2]
[337078355,1725413432106,-150.0,0.00013488,2]
[337078356,1725413432116,-150.0,0.00013488,2]
[337078357,1725413432126,-150.0,0.00013488,2]
[337078358,1725413432136,-150.0,0.00013488,2]
[337078359,1725413432146,-107.07731665,0.00013627,2]
[337078360,1725413432158,-64.33268335,0.00013627,2]
[337078361,1725413432167,-150.0,0.00013654,2]
[337078362,1725413432177,-250.0,0.00013685,2]
[337078363,1725413432188,-165.66645879,0.00013699,2]
[337078364,1725413432205,-315.29707946,0.00013699,2]
[337078365,1725413432216,-354.11646175,0.00013699,2]
[337078366,1725413432226,-250.0,0.00013706,2]
[337078367,1725413432236,-150.0,0.00013821,2]
[337078368,1725413432245,-14.70672059,0.00013887,2]
[337078369,1725413432257,-202.50327941,0.00013887,2]
[337078370,1725413432267,-500.0,0.00013904,2]
[337078371,1725413432277,-297.97,0.00013913,2]
[337078372,1725413432287,-1000.0,0.00013914,2]
[337078373,1725413432296,-150.99,0.00013919,2]
[337078374,1725413432306,-338.91,0.0001394,2]
[337078375,1725413432315,-327.2,0.0001394,2]
[337078376,1725413432325,-14.74162632,0.00013987,2]
[337078377,1725413432349,-135.25837368,0.00013987,2]
[337078378,1725413432359,-150.0,0.00013987,2]
[337078379,1725413432368,-293.7,0.00013997,2]
[337078380,1725413432377,-153.87,0.00014025,2]
[337078381,1725413432386,-150.0,0.00014154,2]
[337078382,1725413432395,-150.0,0.00014237,2]
[337078383,1725413432405,-250.32,0.000143,2]
[337078384,1725413432414,-150.0,0.0001432,2]
[337078385,1725413432424,-150.0,0.00014487,2]
[337078386,1725413432433,-131.5777441,0.00014487,2]
[337078387,1725413432452,-18.4222559,0.00014487,2]
[337078388,1725413432461,-150.0,0.00014632,2]
[337078389,1725413432471,-290.50390158,0.00014633,2]
[337078391,1725413432482,-420.6618978,0.00014633,2]
[337078393,1725413432496,-839.41120062,0.00014633,2]
[337078395,1725413432506,-96.58512932,0.00014633,2]
[337078397,1725413432517,-737.26921388,0.00014633,2]
[337078400,1725413432529,-5041.0536568,0.00014633,2]
[337078402,1725413432537,-3747.184,0.00014633,2]
[337078404,1725413432547,-1263.719,0.00014633,2]
[337078406,1725413432556,-448.591,0.00014633,2]
[337078407,1725413432566,-290.109,0.00014633,2]
[337078409,1725413432575,-1148.255,0.00014633,2]
[337078412,1725413432587,-13511.281,0.00014633,2]
[337078414,1725413432597,-625.363,0.00014633,2]
[337078416,1725413432606,-1082.138,0.00014633,2]
[337078417,1725413432615,-933.445,0.00014633,2]
[337078420,1725413432625,-559.033,0.00014633,2]
[337078422,1725413432634,-812.991,0.00014633,2]
[337078423,1725413432644,-150.354,0.00014633,2]
[337078424,1725413432654,-554.085,0.00014633,2]
[337078425,1725413432664,-1899.0,0.00014633,2]
[337078426,1725413432673,-150.0,0.00014653,2]
[337078427,1725413432682,-11618.6707,0.00014778,2]
[337078428,1725413432695,-150.0,0.00014818,2]
[337078429,1725413432705,-150.0,0.0001482,2]
[337078430,1725413432714,-150.0,0.0001485,2]
[337078431,1725413432723,-157.95458,0.0001485,2]
[337078432,1725413432733,-3043.2129,0.00014862,2]
[337078433,1725413432742,-347.853,0.00014871,2]
[337078434,1725413432751,-265.98594514,0.00014871,2]
[337078435,1725413432763,-371.6925449,0.00014871,2]
[337078436,1725413432775,-362.32150996,0.00014871,2]
[337078437,1725413432784,-638.17849364,0.00014871,2]
[337078438,1725413432803,-55344.07190636,0.00014871,2]
[337078439,1725413432812,-693.9613,0.00014871,2]
[337078440,1725413432821,-8703.7603,0.00014871,2]
[337078441,1725413432830,-2284.0692,0.00014871,2]
[337078442,1725413432840,-500.0,0.00014871,2]
[337078443,1725413432849,-167.13305823,0.00014871,2]
[337078444,1725413432858,-325.36604068,0.00014872,2]
[337078445,1725413432867,-7500.0,0.00014872,2]
[337078446,1725413432876,-167.13305823,0.00014875,2]
[337078447,1725413432886,-500.0,0.00014877,2]
[337078448,1725413432895,-244.9654616,0.00014877,2]
[337078449,1725413432904,-500.0,0.00014877,2]
[337078450,1725413432914,-500.0,0.00014877,2]
[337078451,1725413432923,-500.0,0.00014877,2]
[337078452,1725413433160,-500.0,0.00014877,2]
[337078453,1725413433170,-363.77464951,0.00014877,2]
[337078454,1725413433180,-500.0,0.00014877,2]
[337078455,1725413433191,-500.0,0.00014877,2]
[337078456,1725413433203,-500.0,0.00014877,2]
[337078457,1725413433213,-500.0,0.00014877,2]
[337078458,1725413433222,-500.0,0.00014877,2]
[337078459,1725413433233,-500.0,0.00014877,2]
[337078460,1725413433243,-500.0,0.00014877,2]
[337078461,1725413433253,-500.0,0.00014877,2]
[337078462,1725413433264,-500.0,0.00014877,2]
[337078463,1725413433274,-500.0,0.00014877,2]
[337078464,1725413433283,-647.87,0.00014877,2]
[337078465,1725413433293,-500.0,0.00014877,2]
[337078466,1725413433302,-500.0,0.00014877,2]
[337078467,1725413433312,-500.0,0.00014877,2]
[337078468,1725413433322,-500.0,0.00014877,2]
[337078469,1725413433332,-500.0,0.00014877,2]
[337078470,1725413433342,-500.0,0.00014877,2]
[337078471,1725413433351,-500.0,0.00014877,2]
[337078472,1725413433361,-500.0,0.00014877,2]
[337078473,1725413433370,-541.26,0.00014877,2]
[337078474,1725413433379,-979.13,0.00014877,2]
[337078475,1725413433389,-500.0,0.00014877,2]
[337078476,1725413433399,-500.0,0.00014877,2]
[337078477,1725413433408,-500.0,0.00014877,2]
[337078478,1725413433418,-500.0,0.00014877,2]
[337078479,1725413433427,-500.0,0.00014877,2]
[337078480,1725413433436,-500.0,0.00014877,2]
[337078481,1725413433447,-500.0,0.00014877,2]
[337078482,1725413433457,-500.0,0.00014877,2]
[337078483,1725413433467,-500.0,0.00014877,2]
[337078484,1725413433477,-500.0,0.00014877,2]
[337078485,1725413433486,-500.0,0.00014877,2]
[337078486,1725413433495,-500.0,0.00014877,2]
[337078487,1725413433505,-500.0,0.00014877,2]
[337078488,1725413433514,-500.0,0.00014877,2]
[337078489,1725413433523,-500.0,0.00014877,2]
[337078490,1725413433532,-500.0,0.00014877,2]
[337078491,1725413433542,-500.0,0.00014877,2]
[337078492,1725413433551,-500.0,0.00014877,2]
[337078493,1725413433560,-500.0,0.00014877,2]
[337078494,1725413433570,-500.0,0.00014877,2]
[337078495,1725413433579,-500.0,0.00014877,2]
[337078496,1725413433588,-500.0,0.00014877,2]
[337078497,1725413433597,-500.0,0.00014877,2]
[337078498,1725413433606,-500.0,0.00014877,2]
[337078499,1725413433615,-500.0,0.00014877,2]
[337078500,1725413433624,-500.0,0.00014877,2]
[337078501,1725413433633,-500.0,0.00014877,2]
[337078502,1725413433642,-500.0,0.00014877,2]
[337078503,1725413433652,-500.0,0.00014877,2]
[337078504,1725413433661,-500.0,0.00014877,2]
[337078505,1725413433670,-500.0,0.00014877,2]
[337078506,1725413433680,-500.0,0.00014877,2]
[337078507,1725413433689,-500.0,0.00014877,2]
[337078508,1725413433701,-500.0,0.00014877,2]
[337078509,1725413433710,-500.0,0.00014877,2]
[337078510,1725413433719,-500.0,0.00014877,2]
[337078511,1725413433729,-500.0,0.00014877,2]
[337078512,1725413433738,-500.0,0.00014877,2]
[337078513,1725413433748,-500.0,0.00014877,2]
[337078514,1725413433757,-500.0,0.00014877,2]
[337078515,1725413433767,-500.0,0.00014877,2]
[337078516,1725413433777,-500.0,0.00014877,2]
[337078517,1725413433786,-500.0,0.00014877,2]
[337078518,1725413433795,-500.0,0.00014877,2]
[337078519,1725413433805,-500.0,0.00014877,2]
[337078520,1725413433814,-500.0,0.00014877,2]